fUSD/lending_fUSD_20260702
["ID","MTS","AMOUNT","RATE_DAILY","PERIOD"]
[426884414,1782979846000,-151.0,0.0003014,7]
[426884428,1782979846000,-7659.75970206,0.000302,2]
[426884427,1782979846000,-6176.18933042,0.000302,2]
[426884421,1782979846000,-1608.733405,0.0003014,7]
[426884422,1782979846000,-1608.733405,0.0003014,7]
[426884420,1782979846000,-1608.733405,0.0003014,7]
[426884423,1782979846000,-1608.733405,0.0003014,7]
[426884425,1782979846000,-15000.0,0.000302,2]
[426884416,1782979846000,-151.0,0.0003014,7]
[426884426,1782979846000,-271.73,0.000302,7]
[426884417,1782979846000,-151.0,0.0003014,7]
[426884418,1782979846000,-151.0,0.0003014,7]
[426884407,1782979846000,-252.611124,0.0003014,7]
[426884405,1782979846000,-221.95575,0.0003014,7]
[426884409,1782979846000,-252.611124,0.0003014,7]
[426884413,1782979846000,-151.0,0.0003014,7]
[426884410,1782979846000,-151.0,0.0003014,7]
[426884415,1782979846000,-151.0,0.0003014,7]
[426884411,1782979846000,-151.0,0.0003014,7]
[426884424,1782979846000,-626.14147558,0.00030155,2]
[426884431,1782979847000,-1970.0614155,0.000302,2]
[426884429,1782979847000,-254.1093993,0.00029696,2]
[426884430,1782979847000,-68.7822007,0.000302,2]
[426884433,1782979847000,-440.08639,0.000302,7]
[426884435,1782979847000,-317.12055764,0.000302,7]
[426884436,1782979847000,-491.62786815,0.000302,7]
[426884437,1782979847000,-2201.22871908,0.000302,7]
[426884432,1782979847000,-5616.30508137,0.000302,7]
[426884434,1782979847000,-971.50587901,0.000302,7]
[426884442,1782979864000,333.7764086,0.00017137,120]
[426884445,1782979921000,-250.0,0.00017137,2]
[426884444,1782979921000,-183.83782801,0.00016358,2]
[426884443,1782979921000,-258.0,0.00015579,2]
[426884446,1782979984000,1199.15,0.00037098,120]
[426884447,1782979988000,150.0,0.0002721,120]
[426884448,1782979990000,785.2,0.00037098,120]
[426884449,1782979990000,785.2,0.00037098,120]
[426884450,1782979990000,785.2,0.00037098,120]
[426884451,1782979991000,785.2,0.00037098,120]
[426884454,1782979992000,785.2,0.00037098,120]
[426884453,1782979992000,785.2,0.00037098,120]
[426884452,1782979992000,785.2,0.00037098,120]
[426884456,1782979993000,785.2,0.00037098,120]
[426884455,1782979993000,785.2,0.00037098,120]
[426884458,1782979994000,785.2,0.00037098,120]
[426884457,1782979994000,785.2,0.00037098,120]
[426884459,1782979995000,785.2,0.00037098,120]
[426884461,1782979995000,785.2,0.00037098,120]
[426884460,1782979995000,785.2,0.00037098,120]
[426884463,1782979996000,785.2,0.00037098,120]
[426884462,1782979996000,785.2,0.00037098,120]
[426884466,1782979997000,785.2,0.00037098,120]
[426884464,1782979997000,785.2,0.00037098,120]
[426884465,1782979997000,785.2,0.00037098,120]
[426884467,1782979998000,785.2,0.00037098,120]
[426884468,1782980044000,500.37860656,0.0003013,120]
[426884469,1782980067000,153.98,0.00027132,120]
[426884470,1782980069000,42556.8675,0.0003,120]
[426884471,1782980210000,530.57072058,0.00037097,120]
[426884473,1782980353000,-302.6,0.00020273,2]
[426884472,1782980353000,-153.0,0.00020273,2]
[426884475,1782980476000,35.23648466,0.00020241,2]
[426884474,1782980476000,114.76351534,0.00020241,2]
[426884476,1782980591000,5000.0,0.00037085,120]
[426884477,1782980624000,626.99,0.00037085,120]
[426884478,1782980759000,500.0,0.00037085,120]
[426884480,1782980759000,275.93262643,0.00037085,120]
[426884479,1782980759000,500.0,0.00037085,120]
[426884481,1782980836000,334.9555419,0.00037085,120]
[426884482,1782980925000,-715.256965,0.00020762,2]
[426884483,1782980925000,-899.0,0.00020867,2]
[426884485,1782980925000,-909.0,0.00020867,2]
[426884484,1782980925000,-887.0,0.00020867,2]
[426884490,1782980925000,-642.27666806,0.00020867,2]
[426884488,1782980925000,-917.0,0.00020867,2]
[426884486,1782980925000,-75.90775265,0.00020867,2]
[426884489,1782980925000,-885.0,0.00020867,2]
[426884487,1782980925000,-818.09224735,0.00020867,2]
[426884491,1782980950000,-216.98817235,0.00020867,2]
[426884493,1782980950000,-886.0,0.00020867,2]
[426884492,1782980950000,-887.0,0.00020867,2]
[426884494,1782980950000,-910.0,0.00020867,2]
[426884495,1782980950000,-721.14721796,0.00020867,2]
[426884497,1782980950000,-455.6,0.0002134,2]
[426884496,1782980950000,-231.85278204,0.00020867,2]
[426884498,1782980950000,-455.6,0.00022406,2]
[426884500,1782980950000,-250.0,0.00022953,2]
[426884499,1782980950000,-250.0,0.00022953,2]
[426884501,1782980950000,-250.0,0.00022954,2]
[426884504,1782980950000,-166.0,0.00024,2]
[426884503,1782980950000,-1220.28010151,0.00023631,2]
[426884505,1782980950000,-155.0,0.00024,2]
[426884507,1782980950000,-137.49749324,0.00024,2]
[426884509,1782980950000,-500.0,0.00024658,2]
[426884506,1782980950000,-16.50250676,0.00024,2]
[426884508,1782980950000,-500.0,0.00024173,2]
[426884510,1782980950000,-499.996,0.00024658,2]
[426884511,1782980950000,-161.35,0.00024658,2]
[426884512,1782980950000,-174.63,0.00024658,2]
[426884514,1782980950000,-230.00767985,0.00024719,2]
[426884513,1782980950000,-150.22,0.00024658,2]
[426884502,1782980950000,-170.3,0.00023454,2]
[426884515,1782980955000,416.27,0.00028062,120]
[426884516,1782980957000,150.0,0.00024944,120]
[426884527,1782980975000,-839.2262862,0.00024929,2]
[426884525,1782980975000,-307.26,0.00024803,4]
[426884517,1782980975000,-3778.73779805,0.000218,2]
[426884518,1782980975000,-87.83220195,0.000218,2]
[426884520,1782980975000,-322.11864361,0.0002398,2]
[426884519,1782980975000,-169.23147754,0.00021953,2]
[426884521,1782980975000,-156.57,0.00024658,2]
[426884523,1782980975000,-186.79081854,0.00024735,2]
[426884524,1782980975000,-173.50700255,0.00024737,2]
[426884526,1782980975000,-216.6671885,0.00024828,2]
[426884522,1782980975000,-239.74232015,0.00024719,2]
[426884528,1782981019000,780.028,0.00037087,120]
[426884551,1782981033000,-500.0,0.00024999,2]
[426884549,1782981033000,-419.38565337,0.00024999,2]
[426884548,1782981033000,-220.92427958,0.00024999,2]
[426884546,1782981033000,-353.98139927,0.00024999,2]
[426884550,1782981033000,-500.0,0.00024999,2]
[426884556,1782981033000,-500.0,0.00024999,2]
[426884555,1782981033000,-538.15673647,0.00024999,2]
[426884565,1782981033000,-500.0,0.00024999,2]
[426884554,1782981033000,-500.0,0.00024999,2]
[426884567,1782981033000,-207.67850586,0.00024999,2]
[426884547,1782981033000,-500.0,0.00024999,2]
[426884544,1782981033000,-6902.36,0.00024979,2]
[426884552,1782981033000,-500.0,0.00024999,2]
[426884537,1782981033000,-155.19452401,0.0002493,2]
[426884543,1782981033000,-405.0,0.00024979,2]
[426884545,1782981033000,-500.0,0.00024999,2]
[426884542,1782981033000,-152.62411178,0.00024967,2]
[426884540,1782981033000,-416.27,0.00024944,2]
[426884571,1782981033000,-500.0,0.00024999,2]
[426884539,1782981033000,-201.79766161,0.00024933,2]
[426884538,1782981033000,-75.80547599,0.0002493,2]
[426884536,1782981033000,-8549.69829614,0.00024929,2]
[426884535,1782981033000,-20.78541766,0.00024929,2]
[426884534,1782981033000,-250.0,0.00024879,2]
[426884531,1782981033000,-151.99,0.00024658,2]
[426884533,1782981033000,-250.0,0.00024794,2]
[426884532,1782981033000,-161.88537607,0.00024737,2]
[426884553,1782981033000,-500.0,0.00024999,2]
[426884561,1782981033000,-500.0,0.00024999,2]
[426884541,1782981033000,-150.0,0.00024944,2]
[426884559,1782981033000,-500.0,0.00024999,2]
[426884557,1782981033000,-500.0,0.00024999,2]
[426884611,1782981033000,-500.0,0.00024999,2]
[426884610,1782981033000,-500.0,0.00024999,2]
[426884603,1782981033000,-500.0,0.00024999,2]
[426884605,1782981033000,-500.0,0.00024999,2]
[426884609,1782981033000,-500.0,0.00024999,2]
[426884608,1782981033000,-500.0,0.00024999,2]
[426884606,1782981033000,-500.0,0.00024999,2]
[426884600,1782981033000,-500.0,0.00024999,2]
[426884604,1782981033000,-500.0,0.00024999,2]
[426884598,1782981033000,-500.0,0.00024999,2]
[426884594,1782981033000,-500.0,0.00024999,2]
[426884602,1782981033000,-500.0,0.00024999,2]
[426884596,1782981033000,-500.0,0.00024999,2]
[426884607,1782981033000,-500.0,0.00024999,2]
[426884588,1782981033000,-500.0,0.00024999,2]
[426884592,1782981033000,-500.0,0.00024999,2]
[426884563,1782981033000,-255.67930524,0.00024999,2]
[426884572,1782981033000,-500.0,0.00024999,2]
[426884581,1782981033000,-500.0,0.00024999,2]
[426884574,1782981033000,-326.83707547,0.00024999,2]
[426884575,1782981033000,-500.0,0.00024999,2]
[426884570,1782981033000,-500.0,0.00024999,2]
[426884576,1782981033000,-500.0,0.00024999,2]
[426884590,1782981033000,-500.0,0.00024999,2]
[426884573,1782981033000,-500.0,0.00024999,2]
[426884584,1782981033000,-500.0,0.00024999,2]
[426884558,1782981033000,-223.61593961,0.00024999,2]
[426884577,1782981033000,-500.0,0.00024999,2]
[426884586,1782981033000,-500.0,0.00024999,2]
[426884651,1782981034000,-550.0,0.00024999,2]
[426884645,1782981034000,-500.0,0.00024999,2]
[426884642,1782981034000,-500.0,0.00024999,2]
[426884646,1782981034000,-500.0,0.00024999,2]
[426884648,1782981034000,-395.58163444,0.00024999,2]
[426884640,1782981034000,-500.0,0.00024999,2]
[426884647,1782981034000,-500.0,0.00024999,2]
[426884650,1782981034000,-500.0,0.00024999,2]
[426884652,1782981034000,-500.0,0.00024999,2]
[426884649,1782981034000,-213.82,0.00024999,2]
[426884643,1782981034000,-500.0,0.00024999,2]
[426884644,1782981034000,-500.0,0.00024999,2]
[426884663,1782981034000,-168.0,0.00025,2]
[426884655,1782981034000,-500.0,0.00024999,2]
[426884659,1782981034000,-155.0,0.00025,2]
[426884661,1782981034000,-5660.79,0.00025,2]
[426884656,1782981034000,-500.0,0.00024999,2]
[426884660,1782981034000,-13209.85,0.00025,2]
[426884658,1782981034000,-150.99,0.00024999,2]
[426884657,1782981034000,-500.0,0.00024999,2]
[426884664,1782981034000,-9999.99,0.00025,2]
[426884662,1782981034000,-3773.53,0.00025,2]
[426884636,1782981034000,-500.0,0.00024999,2]
[426884665,1782981034000,-468.56,0.00025,2]
[426884653,1782981034000,-500.0,0.00024999,2]
[426884639,1782981034000,-500.0,0.00024999,2]
[426884627,1782981034000,-500.0,0.00024999,2]
[426884635,1782981034000,-500.0,0.00024999,2]
[426884667,1782981034000,-5036.08,0.00025,2]
[426884612,1782981034000,-500.0,0.00024999,2]
[426884613,1782981034000,-500.0,0.00024999,2]
[426884614,1782981034000,-500.0,0.00024999,2]
[426884619,1782981034000,-500.0,0.00024999,2]
[426884617,1782981034000,-500.0,0.00024999,2]
[426884618,1782981034000,-500.0,0.00024999,2]
[426884615,1782981034000,-500.0,0.00024999,2]
[426884616,1782981034000,-500.0,0.00024999,2]
[426884621,1782981034000,-500.0,0.00024999,2]
[426884631,1782981034000,-500.0,0.00024999,2]
[426884624,1782981034000,-500.0,0.00024999,2]
[426884622,1782981034000,-500.0,0.00024999,2]
[426884623,1782981034000,-500.0,0.00024999,2]
[426884629,1782981034000,-500.0,0.00024999,2]
[426884626,1782981034000,-500.0,0.00024999,2]
[426884620,1782981034000,-500.0,0.00024999,2]
[426884625,1782981034000,-500.0,0.00024999,2]
[426884628,1782981034000,-500.0,0.00024999,2]
[426884630,1782981034000,-500.0,0.00024999,2]
[426884633,1782981034000,-286.04618486,0.00024999,2]
[426884632,1782981034000,-213.95381514,0.00024999,2]
[426884634,1782981034000,-500.0,0.00024999,2]
[426884637,1782981034000,-500.0,0.00024999,2]
[426884638,1782981034000,-500.0,0.00024999,2]
[426884641,1782981034000,-500.0,0.00024999,2]
[426884674,1782981034000,-500.0,0.00025273,2]
[426884654,1782981034000,-500.0,0.00024999,2]
[426884675,1782981034000,-469.75,0.00025337,2]
[426884691,1782981034000,-2119.80461179,0.00025972,2]
[426884701,1782981034000,-237.99476169,0.00026126,2]
[426884709,1782981034000,-376.68596794,0.00026128,2]
[426884711,1782981034000,-388.38969193,0.00026128,2]
[426884703,1782981034000,-302.93218442,0.00026128,2]
[426884710,1782981034000,-313.51053462,0.00026128,2]
[426884704,1782981034000,-353.29054109,0.00026128,2]
[426884702,1782981034000,-431.70557937,0.00026126,2]
[426884706,1782981034000,-368.49119015,0.00026128,2]
[426884705,1782981034000,-360.18773848,0.00026128,2]
[426884707,1782981034000,-520.52100764,0.00026128,2]
[426884708,1782981034000,-167.49131498,0.00026128,2]
[426884712,1782981034000,-313.90623354,0.00026128,2]
[426884718,1782981034000,-428.04263791,0.00026128,2]
[426884713,1782981034000,-304.63168673,0.00026128,2]
[426884717,1782981034000,-169.48591583,0.00026128,2]
[426884714,1782981034000,-177.4123005,0.00026128,2]
[426884715,1782981034000,-160.73161154,0.00026128,2]
[426884721,1782981034000,-361.71706959,0.00026128,2]
[426884720,1782981034000,-485.6561282,0.00026128,2]
[426884719,1782981034000,-337.37375833,0.00026128,2]
[426884722,1782981034000,-366.77494221,0.00026128,2]
[426884723,1782981034000,-393.56554576,0.00026138,2]
[426884724,1782981034000,-267.79038048,0.00026138,2]
[426884670,1782981034000,-201.79766161,0.00025207,2]
[426884693,1782981034000,-201.79766161,0.00026029,2]
[426884692,1782981034000,-155.0,0.00026,2]
[426884716,1782981034000,-167.52780625,0.00026128,2]
[426884689,1782981034000,-469.75,0.00025955,2]
[426884676,1782981034000,-2401.89,0.00025447,2]
[426884700,1782981034000,-218.47797966,0.00026126,2]
[426884677,1782981034000,-201.79766161,0.00025481,2]
[426884672,1782981034000,-343.29,0.00025246,2]
[426884668,1782981034000,-10622.77,0.00025,2]
[426884671,1782981034000,-26809.53,0.00025246,2]
[426884666,1782981034000,-999.99,0.00025,2]
[426884673,1782981034000,-582.69817529,0.00025264,2]
[426884678,1782981034000,-500.0,0.00025547,2]
[426884683,1782981034000,-1000.0,0.00025691,2]
[426884684,1782981034000,-251.3,0.00025748,2]
[426884681,1782981034000,-347.01400509,0.00025571,2]
[426884680,1782981034000,-150.0,0.00025553,2]
[426884669,1782981034000,-2119.80461183,0.00025146,2]
[426884682,1782981034000,-323.77075213,0.00025571,2]
[426884695,1782981034000,-392.10498283,0.00026126,2]
[426884679,1782981034000,-187.7,0.00025553,2]
[426884696,1782981034000,-406.50788367,0.00026126,2]
[426884698,1782981034000,-211.97610217,0.00026126,2]
[426884697,1782981034000,-324.93948856,0.00026126,2]
[426884690,1782981034000,-150.0,0.00025959,5]
[426884694,1782981034000,-427.51082192,0.00026126,2]
[426884688,1782981034000,-467.13,0.00025876,2]
[426884687,1782981034000,-2767.28,0.00025853,2]
[426884686,1782981034000,-504.08865584,0.00025821,2]
[426884685,1782981034000,-201.79766161,0.00025755,2]
[426884699,1782981034000,-311.31750956,0.00026126,2]
[426884747,1782981035000,-500.0,0.00027058,2]
[426884741,1782981035000,-611.93147459,0.00026937,2]
[426884745,1782981035000,-433.25990291,0.00027058,2]
[426884744,1782981035000,-304.88525297,0.00027058,2]
[426884742,1782981035000,-166.0,0.00027,2]
[426884749,1782981035000,-5000.0,0.00027059,2]
[426884752,1782981035000,-9905.84,0.00027111,2]
[426884753,1782981035000,-250.0,0.00027124,2]
[426884750,1782981035000,-150.0,0.00027062,2]
[426884751,1782981035000,-307.22072446,0.000271,2]
[426884754,1782981035000,-201.79766161,0.00027125,2]
[426884755,1782981035000,-1014.87,0.00027143,2]
[426884740,1782981035000,-201.79766161,0.00026851,2]
[426884756,1782981035000,-156.57,0.00027143,7]
[426884748,1782981035000,-628.84200073,0.00027058,2]
[426884739,1782981035000,-2119.80461179,0.00026797,2]
[426884731,1782981035000,-1810.0,0.00026264,2]
[426884737,1782981035000,-201.79766161,0.00026577,2]
[426884757,1782981035000,-164.82,0.00027184,2]
[426884726,1782981035000,-425.09834133,0.00026138,2]
[426884727,1782981035000,-187.96733404,0.00026139,2]
[426884725,1782981035000,-293.52280167,0.00026138,2]
[426884729,1782981035000,-1852.42,0.00026185,2]
[426884730,1782981035000,-170.83,0.00026203,2]
[426884743,1782981035000,-1112.48,0.00027011,2]
[426884728,1782981035000,-4378.4826,0.00026163,2]
[426884732,1782981035000,-1799.0,0.00026264,2]
[426884733,1782981035000,-201.79766161,0.00026303,2]
[426884736,1782981035000,-469.75,0.00026573,2]
[426884746,1782981035000,-177.73003531,0.00027058,2]
[426884735,1782981035000,-166.66,0.0002646,2]
[426884738,1782981035000,-5684.8291,0.00026699,2]
[426884734,1782981035000,-2177.98285742,0.00026414,2]
[426884758,1782981035000,-469.75,0.00027191,2]
[426884780,1782981035000,-1639.10880613,0.00027686,2]
[426884767,1782981035000,-1639.10880613,0.00027377,2]
[426884776,1782981035000,-1639.10880613,0.00027575,2]
[426884777,1782981035000,-892.5206712,0.00027623,2]
[426884783,1782981035000,-712.8081853,0.00027709,2]
[426884782,1782981035000,-295.39777811,0.000277,2]
[426884760,1782981035000,-1725.95396411,0.000272,2]
[426884786,1782981035000,-1639.10880613,0.00027875,2]
[426884781,1782981035000,-1725.95396411,0.000277,2]
[426884785,1782981035000,-842.15997392,0.00027748,2]
[426884789,1782981035000,-1725.95396411,0.00028,2]
[426884788,1782981035000,-2000.0,0.00027999,8]
[426884787,1782981035000,-201.79766161,0.00027947,2]
[426884792,1782981035000,-1639.10880613,0.00028073,2]
[426884790,1782981035000,-295.39777811,0.00028,2]
[426884793,1782981035000,-88.82929227,0.00028081,2]
[426884791,1782981035000,-9435.32,0.00028,2]
[426884771,1782981035000,-319.302062,0.0002744,14]
[426884784,1782981035000,-1639.10880613,0.00027717,2]
[426884778,1782981035000,-1227.28394059,0.00027623,2]
[426884779,1782981035000,-201.79766161,0.00027673,2]
[426884765,1782981035000,-160.0,0.00027294,2]
[426884759,1782981035000,-160.0,0.00027196,2]
[426884769,1782981035000,-3578.54,0.00027397,10]
[426884768,1782981035000,-1500.0,0.00027397,2]
[426884761,1782981035000,-295.39777811,0.000272,2]
[426884762,1782981035000,-216.69616408,0.00027202,2]
[426884766,1782981035000,-285.05513885,0.00027301,2]
[426884764,1782981035000,-2571.87156248,0.00027229,2]
[426884770,1782981035000,-201.79766161,0.00027399,2]
[426884773,1782981035000,-1725.95396411,0.000275,2]
[426884772,1782981035000,-211.53783,0.0002744,14]
[426884774,1782981035000,-295.39777811,0.000275,2]
[426884775,1782981035000,-500.0,0.000275,7]
[426884763,1782981035000,-262.46,0.0002721,2]
[426884822,1782981037000,-201.79766161,0.00028221,2]
[426884818,1782981037000,-14085.45162178,0.00028144,2]
[426884820,1782981037000,-1562.20052949,0.00028219,2]
[426884819,1782981037000,-1639.10880613,0.00028181,2]
[426884816,1782981037000,-10466.41645247,0.00028144,2]
[426884817,1782981037000,-381.27822225,0.00028144,2]
[426884813,1782981037000,-1664.30171033,0.00028126,2]
[426884814,1782981037000,-1684.31994784,0.00028132,2]
[426884811,1782981037000,-20.08,0.00027397,10]
[426884824,1782981037000,-138.10568438,0.000283,2]
[426884810,1782981037000,-4056.22,0.00027397,10]
[426884809,1782981037000,-181.33,0.00024658,2]
[426884815,1782981037000,-351.53,0.00028134,2]
[426884823,1782981037000,-1725.95396411,0.000283,2]
[426884812,1782981037000,-2411.17070773,0.00028081,2]
[426884825,1782981037000,-157.29209373,0.000283,2]
[426884821,1782981037000,-76.90827664,0.00028219,2]
[426884839,1782981037000,-500.0,0.00028493,2]
[426884836,1782981037000,-150.0,0.00028493,2]
[426884837,1782981037000,-150.0,0.00028493,2]
[426884835,1782981037000,-1639.10880613,0.00028485,2]
[426884833,1782981037000,-1639.10880613,0.00028458,2]
[426884831,1782981037000,-618.73257491,0.00028449,2]
[426884838,1782981037000,-238.78748961,0.00028493,2]
[426884832,1782981037000,-503.16039774,0.00028449,2]
[426884827,1782981037000,-16.08379466,0.00028392,2]
[426884830,1782981037000,-997.91163914,0.00028449,2]
[426884826,1782981037000,-152.62411174,0.00028327,2]
[426884828,1782981037000,-1623.02501147,0.00028392,2]
[426884829,1782981037000,-682.0,0.00028431,5]
[426884834,1782981037000,-712.8081853,0.00028467,2]
[426884891,1782981038000,-240.1,0.00029315,2]
[426884897,1782981038000,-260.86588494,0.00029395,2]
[426884898,1782981038000,-255.7687563,0.00029395,2]
[426884896,1782981038000,-272.19793965,0.00029395,2]
[426884887,1782981038000,-2119.80461179,0.00029274,2]
[426884876,1782981038000,-3149.227,0.00029167,22]
[426884885,1782981038000,-2000.0,0.00029209,13]
[426884872,1782981038000,-201.79766161,0.00029043,2]
[426884874,1782981038000,-1804.0,0.00029126,2]
[426884871,1782981038000,-168.98,0.00029,7]
[426884893,1782981038000,-201.79766161,0.00029317,2]
[426884880,1782981038000,-1725.95396411,0.000292,2]
[426884895,1782981038000,-322.01339371,0.00029395,2]
[426884916,1782981038000,-351.53,0.0002989,2]
[426884899,1782981038000,-260.77390386,0.00029395,2]
[426884900,1782981038000,-258.18954076,0.00029395,2]
[426884903,1782981038000,-201.79766161,0.00029591,2]
[426884902,1782981038000,-2000.0,0.00029451,14]
[426884901,1782981038000,-1725.95396411,0.000294,2]
[426884906,1782981038000,-232.0,0.00029656,10]
[426884882,1782981038000,-687.0,0.00029203,5]
[426884914,1782981038000,-201.79766161,0.00029865,2]
[426884905,1782981038000,-500.0,0.0002963,18]
[426884915,1782981038000,-351.53,0.00029884,2]
[426884907,1782981038000,-232.6649971,0.00029696,2]
[426884913,1782981038000,-433.71,0.0002984,7]
[426884904,1782981038000,-1195.55861644,0.00029615,2]
[426884873,1782981038000,-1195.55861651,0.00029067,2]
[426884862,1782981038000,-1639.10880613,0.00028803,2]
[426884869,1782981038000,-2000.0,0.00028969,6]
[426884841,1782981038000,-500.0,0.00028493,2]
[426884840,1782981038000,-500.0,0.00028493,2]
[426884844,1782981038000,-150.0,0.00028493,2]
[426884847,1782981038000,-150.0,0.00028493,2]
[426884842,1782981038000,-514.49947123,0.00028493,2]
[426884850,1782981038000,-150.0,0.00028493,2]
[426884849,1782981038000,-206.91786761,0.00028493,2]
[426884843,1782981038000,-150.0,0.00028493,2]
[426884845,1782981038000,-150.0,0.00028493,2]
[426884848,1782981038000,-150.0,0.00028493,2]
[426884846,1782981038000,-150.0,0.00028493,2]
[426884851,1782981038000,-150.0,0.00028493,2]
[426884852,1782981038000,-201.28724746,0.00028493,2]
[426884854,1782981038000,-150.0,0.00028493,2]
[426884864,1782981038000,-668.0,0.00028872,5]
[426884866,1782981038000,-1725.95396411,0.000289,2]
[426884858,1782981038000,-1725.95396411,0.000286,2]
[426884853,1782981038000,-150.0,0.00028493,2]
[426884857,1782981038000,-2000.0,0.00028586,3]
[426884856,1782981038000,-201.79766161,0.00028495,2]
[426884855,1782981038000,-200.0,0.00028493,2]
[426884908,1782981038000,-198.0,0.00029699,10]
[426884859,1782981038000,-682.0,0.00028639,5]
[426884861,1782981038000,-239.9235361,0.00028782,2]
[426884860,1782981038000,-201.79766161,0.00028769,2]
[426884868,1782981038000,-617.71819119,0.00028938,2]
[426884878,1782981038000,-177.64,0.00029167,22]
[426884870,1782981038000,-2000.0,0.00029,2]
[426884910,1782981038000,-1725.95396411,0.000297,2]
[426884889,1782981038000,-2000.0,0.000293,2]
[426884909,1782981038000,-1488.47,0.00029699,2]
[426884941,1782981038000,-12499.99,0.0003,2]
[426884950,1782981038000,-2526.6,0.0003,2]
[426884945,1782981038000,-634.48,0.0003,2]
[426884948,1782981038000,-12499.98,0.0003,2]
[426884947,1782981038000,-192.99,0.0003,2]
[426884953,1782981038000,-12500.0,0.0003,2]
[426884964,1782981038000,-12500.0,0.0003,2]
[426884954,1782981038000,-24999.99,0.0003,2]
[426884952,1782981038000,-12499.98,0.0003,2]
[426884963,1782981038000,-12499.99,0.0003,2]
[426884955,1782981038000,-12499.99,0.0003,2]
[426884956,1782981038000,-12499.98,0.0003,2]
[426884958,1782981038000,-12499.99,0.0003,2]
[426884957,1782981038000,-14999.98,0.0003,2]
[426884961,1782981038000,-9999.99,0.0003,2]
[426884959,1782981038000,-1616.09,0.0003,2]
[426884960,1782981038000,-2499.99,0.0003,2]
[426884962,1782981038000,-14999.99,0.0003,2]
[426884965,1782981038000,-14999.99,0.0003,2]
[426884967,1782981038000,-12499.99,0.0003,2]
[426884971,1782981038000,-500.0,0.00030035,7]
[426884968,1782981038000,-800.0,0.0003,2]
[426884969,1782981038000,-2000.0,0.0003,2]
[426884972,1782981038000,-400.0,0.0003007,2]
[426884966,1782981038000,-24999.99,0.0003,2]
[426884912,1782981038000,-154.76,0.00029726,2]
[426884970,1782981038000,-500.0,0.00030035,7]
[426884943,1782981038000,-12499.98,0.0003,2]
[426884940,1782981038000,-12499.89,0.0003,2]
[426884973,1782981038000,-700.0,0.0003007,2]
[426884949,1782981038000,-12499.98,0.0003,2]
[426884951,1782981038000,-12500.0,0.0003,2]
[426884917,1782981038000,-60836.8056891,0.00029894,2]
[426884920,1782981038000,-2000.0,0.000299,2]
[426884921,1782981038000,-317.0,0.000299,2]
[426884926,1782981038000,-351.53,0.0002999,2]
[426884925,1782981038000,-351.53,0.0002999,2]
[426884928,1782981038000,-12500.0,0.0003,2]
[426884919,1782981038000,-15456.3571,0.000299,2]
[426884927,1782981038000,-40623.7128852,0.00029991,2]
[426884924,1782981038000,-300.0,0.00029978,2]
[426884923,1782981038000,-2000.0,0.00029974,19]
[426884922,1782981038000,-310.0,0.000299,2]
[426884918,1782981038000,-2000.0,0.00029898,60]
[426884930,1782981038000,-12500.0,0.0003,2]
[426884911,1782981038000,-198.0,0.00029701,10]
[426884938,1782981038000,-12499.98,0.0003,2]
[426884931,1782981038000,-10000.0,0.0003,2]
[426884946,1782981038000,-12500.0,0.0003,2]